fUSD/lending_fUSD_20240222
["ID","MTS","AMOUNT","RATE_DAILY","PERIOD"]
[314844533,1708584676268,-500.0,0.00036164,2]
[314844534,1708584676277,-500.0,0.00036164,2]
[314844535,1708584676287,-500.0,0.00036164,2]
[314844536,1708584676296,-614.4,0.00036164,2]
[314844537,1708584676305,-522.7,0.00036164,2]
[314844538,1708584676316,-500.0,0.00036164,2]
[314844539,1708584676325,-500.0,0.00036164,2]
[314844540,1708584676335,-1000.0,0.00036164,7]
[314844541,1708584676345,-1000.0,0.00036164,7]
[314844542,1708584676354,-832.77,0.00036164,2]
[314844543,1708584676366,-668.15,0.00036164,2]
[314844544,1708584676377,-500.0,0.00036164,2]
[314844545,1708584676387,-500.0,0.00036164,2]
[314844546,1708584676397,-500.0,0.00036164,2]
[314844547,1708584676406,-500.0,0.00036164,2]
[314844548,1708584676418,-506.98187155,0.00036164,2]
[314844549,1708584676427,-500.0,0.00036164,2]
[314844550,1708584676439,-500.0,0.00036164,2]
[314844551,1708584676449,-500.0,0.00036164,2]
[314844552,1708584676459,-876.64,0.00036164,2]
[314844553,1708584676473,-500.0,0.00036164,2]
[314844554,1708584676483,-500.0,0.00036164,2]
[314844555,1708584676503,-500.0,0.00036164,2]
[314844556,1708584676531,-161.39157969,0.00036164,2]
[314844557,1708584676545,-542.39,0.00036164,2]
[314844558,1708584676557,-500.0,0.00036164,2]
[314844559,1708584676577,-500.0,0.00036164,2]
[314844560,1708584676594,-500.0,0.00036164,2]
[314844561,1708584676610,-500.0,0.00036164,2]
[314844562,1708584676627,-500.0,0.00036164,2]
[314844563,1708584676636,-500.0,0.00036164,2]
[314844564,1708584676728,-500.0,0.00036164,2]
[314844565,1708584676738,-500.0,0.00036164,2]
[314844566,1708584676747,-993.12,0.00036164,2]
[314844567,1708584676758,-517.9,0.00036164,2]
[314844568,1708584676769,-500.0,0.00036164,2]
[314844569,1708584676779,-500.0,0.00036164,2]
[314844570,1708584676788,-795.62,0.00036164,2]
[314844571,1708584676798,-500.0,0.00036164,2]
[314844572,1708584676807,-1437.34,0.00036164,2]
[314844573,1708584676816,-500.0,0.00036164,2]
[314844574,1708584676825,-500.0,0.00036164,2]
[314844575,1708584676835,-500.0,0.00036164,2]
[314844576,1708584676844,-500.0,0.00036164,2]
[314844577,1708584676854,-500.0,0.00036164,2]
[314844578,1708584676864,-500.0,0.00036164,2]
[314844579,1708584676873,-500.0,0.00036164,2]
[314844580,1708584676883,-500.0,0.00036164,2]
[314844581,1708584676893,-500.0,0.00036164,2]
[314844582,1708584676902,-1149.78,0.00036164,2]
[314844583,1708584676911,-500.0,0.00036164,2]
[314844584,1708584676921,-565.77,0.00036164,2]
[314844585,1708584676931,-500.0,0.00036164,2]
[314844586,1708584676940,-808.29,0.00036164,2]
[314844587,1708584676950,-500.0,0.00036164,2]
[314844588,1708584676959,-500.0,0.00036164,2]
[314844589,1708584676968,-500.0,0.00036164,2]
[314844590,1708584676978,-500.0,0.00036164,2]
[314844591,1708584676987,-691.58,0.00036164,2]
[314844592,1708584676996,-500.0,0.00036164,2]
[314844593,1708584677005,-500.0,0.00036164,2]
[314844594,1708584677014,-500.0,0.00036164,2]
[314844595,1708584677026,-1505.21,0.00036164,2]
[314844596,1708584677035,-500.0,0.00036164,2]
[314844597,1708584677044,-500.0,0.00036164,2]
[314844598,1708584677053,-500.0,0.00036164,2]
[314844599,1708584677062,-916.36,0.00036164,2]
[314844600,1708584677071,-1195.16,0.00036164,2]
[314844601,1708584677080,-500.0,0.00036164,2]
[314844602,1708584677089,-514.60174423,0.00036164,2]
[314844603,1708584677098,-500.0,0.00036164,2]
[314844604,1708584677107,-201.84937766,0.00036164,2]
[314844605,1708584677116,-409.63267108,0.00036164,2]
[314844606,1708584677686,-90.36732892,0.00036164,2]
[314844607,1708584677695,-838.3,0.00036164,2]
[314844608,1708584677705,-500.0,0.00036164,2]
[314844609,1708584677714,-557.7,0.00036164,2]
[314844610,1708584677724,-500.0,0.00036164,2]
[314844611,1708584677733,-13.03861335,0.00036164,2]
[314844612,1708584677769,-493.76114843,0.00035616,2]
[314844613,1708584677781,-6.23885157,0.00035616,2]
[314844614,1708584677790,-486.96138665,0.00036164,2]
[314844615,1708584677799,-500.0,0.00036164,2]
[314844616,1708584677808,-500.0,0.00036164,2]
[314844617,1708584677817,-876.9,0.00036164,2]
[314844618,1708584677827,-500.0,0.00036164,2]
[314844619,1708584677836,-62.49958704,0.00036164,2]
[314844620,1708584678103,-500.0,0.00035616,2]
[314844621,1708584678112,-500.0,0.00035616,2]
[314844622,1708584678122,-420.10342999,0.0003589,2]
[314844623,1708584678935,-274.62511769,0.00035524,4]
[314844624,1708584678944,-500.0,0.00035616,2]
[314844625,1708584678954,-500.0,0.00035616,2]
[314844626,1708584678963,-500.0,0.00035616,2]
[314844627,1708584678972,-500.0,0.00035616,2]
[314844628,1708584678981,-500.0,0.00035616,2]
[314844629,1708584678991,-500.0,0.00035616,2]
[314844630,1708584679000,-500.0,0.00035616,2]
[314844631,1708584679009,-79.89657001,0.0003589,2]
[314844632,1708584679019,-500.0,0.0003589,2]
[314844633,1708584679028,-332.12,0.0003589,2]
[314844634,1708584679037,-500.0,0.0003589,2]
[314844635,1708584679047,-194.34,0.0003589,2]
[314844636,1708584679056,-495.03,0.0003589,2]
[314844637,1708584679065,-923.34041296,0.00036164,2]
[314844638,1708584679073,-500.0,0.00036164,2]
[314844639,1708584679082,-500.0,0.00036164,2]
[314844640,1708584679090,-643.5,0.00036164,2]
[314844641,1708584679099,-500.0,0.00036164,2]
[314844642,1708584679108,-764.96,0.00036164,2]
[314844643,1708584679117,-500.0,0.00036164,2]
[314844644,1708584679126,-500.0,0.00036164,2]
[314844645,1708584679135,-500.0,0.00036164,2]
[314844646,1708584679143,-500.0,0.00036164,2]
[314844647,1708584679152,-595.40111572,0.00036164,2]
[314844648,1708584679161,-500.0,0.00036164,2]
[314844649,1708584679170,-500.0,0.00036164,2]
[314844650,1708584679178,-1442.34,0.00036164,2]
[314844651,1708584679187,-508.58733521,0.00036164,2]
[314844652,1708584679196,-567.48,0.00036164,2]
[314844653,1708584679205,-500.0,0.00036164,2]
[314844654,1708584679214,-500.0,0.00036164,2]
[314844655,1708584679223,-507.59595573,0.00036164,2]
[314844656,1708584679231,-1043.98,0.00036164,2]
[314844657,1708584679240,-500.0,0.00036164,2]
[314844658,1708584679249,-500.0,0.00036164,2]
[314844659,1708584679258,-1117.0,0.00036164,2]
[314844660,1708584679267,-500.0,0.00036164,2]
[314844661,1708584679277,-590.49,0.00036164,2]
[314844662,1708584679286,-500.0,0.00036164,2]
[314844663,1708584679296,-500.0,0.00036164,2]
[314844664,1708584679305,-500.0,0.00036164,2]
[314844665,1708584679314,-690.67,0.00036164,2]
[314844666,1708584679323,-500.0,0.00036164,2]
[314844667,1708584679331,-500.0,0.00036164,2]
[314844668,1708584679340,-510.03500988,0.00036164,2]
[314844669,1708584679348,-695.62,0.00036164,2]
[314844670,1708584679358,-500.0,0.00036164,2]
[314844671,1708584679367,-500.0,0.00036164,2]
[314844672,1708584679376,-500.0,0.00036164,2]
[314844673,1708584679385,-500.0,0.00036164,2]
[314844674,1708584679393,-512.58,0.00036164,2]
[314844675,1708584679402,-500.0,0.00036164,2]
[314844676,1708584679411,-1200.12,0.00036164,2]
[314844677,1708584679420,-500.0,0.00036164,2]
[314844678,1708584679429,-704.97,0.00036164,2]
[314844679,1708584679438,-443.49288994,0.00036164,2]
[314844680,1708584679447,-504.94395774,0.00036164,2]
[314844681,1708584679456,-500.0,0.00036164,2]
[314844682,1708584679466,-624.35,0.00036164,2]
[314844683,1708584679475,-519.70226747,0.00036164,2]
[314844684,1708584679484,-561.67860662,0.00036164,2]
[314844685,1708584679493,-1005.91,0.00036164,2]
[314844686,1708584679502,-500.0,0.00036164,2]
[314844687,1708584679511,-1242.08,0.00036164,2]
[314844688,1708584679520,-500.0,0.00036164,2]
[314844689,1708584679530,-500.0,0.00036164,2]
[314844690,1708584679539,-500.0,0.00036164,2]
[314844691,1708584679548,-500.0,0.00036164,2]
[314844692,1708584679565,-500.0,0.00036164,2]
[314844693,1708584679574,-500.0,0.00036164,2]
[314844694,1708584679583,-330.34842305,0.00036164,2]
[314844695,1708584679592,-1099.48,0.00036164,2]
[314844696,1708584679601,-500.0,0.00036164,2]
[314844697,1708584679612,-1051.05,0.00036164,2]
[314844698,1708584679620,-500.0,0.00036164,2]
[314844699,1708584679630,-500.0,0.00036164,2]
[314844700,1708584679639,-751.03,0.00036164,2]
[314844701,1708584679648,-500.0,0.00036164,2]
[314844702,1708584679656,-690.5,0.00036164,2]
[314844703,1708584679666,-278.67651243,0.00036164,2]
[314844704,1708584679675,-500.0,0.00036164,2]
[314844705,1708584679684,-500.0,0.00036164,2]
[314844706,1708584679693,-2547.7,0.00036164,2]
[314844707,1708584679701,-500.0,0.00036164,2]
[314844708,1708584679710,-500.0,0.00036164,2]
[314844709,1708584679719,-169.60013745,0.00036164,2]
[314844710,1708584679735,-1148.28986255,0.00036164,2]
[314844711,1708584679744,-500.0,0.00036164,2]
[314844712,1708584679753,-500.0,0.00036164,2]
[314844713,1708584679762,-857.38,0.00036164,2]
[314844714,1708584679772,-500.0,0.00036164,2]
[314844715,1708584679782,-965.92,0.00036164,2]
[314844716,1708584679790,-914.91,0.00036164,2]
[314844717,1708584679800,-500.0,0.00036164,2]
[314844718,1708584679810,-500.0,0.00036164,2]
[314844719,1708584679819,-500.0,0.00036164,2]
[314844720,1708584679828,-500.0,0.00036164,2]
[314844721,1708584679838,-1099.31,0.00036164,2]
[314844722,1708584679848,-500.0,0.00036164,2]
[314844723,1708584679857,-1690.12,0.00036164,2]
[314844724,1708584679866,-500.0,0.00036164,2]
[314844725,1708584679875,-500.0,0.00036164,2]
[314844726,1708584679884,-500.0,0.00036164,2]
[314844727,1708584679894,-521.63,0.00036164,2]
[314844728,1708584679902,-2820.71,0.00036164,2]
[314844729,1708584679912,-500.0,0.00036164,2]
[314844730,1708584679921,-500.0,0.00036164,2]
[314844731,1708584679930,-500.0,0.00036164,2]
[314844732,1708584679939,-566.8,0.00036164,2]
[314844733,1708584679948,-817.61,0.00036164,2]
[314844734,1708584679957,-535.41,0.00036164,2]
[314844735,1708584680083,-398.36343048,0.00036164,2]
[314844736,1708584680093,-500.0,0.00036164,2]
[314844737,1708584680102,-528.78452166,0.00036164,2]
[314844738,1708584680111,-500.0,0.00036164,2]
[314844739,1708584680120,-500.0,0.00036164,2]
[314844740,1708584680130,-500.0,0.00036164,2]
[314844741,1708584680138,-500.0,0.00036164,2]
[314844742,1708584680148,-337.67317717,0.00036164,7]
[314844743,1708584680169,-466.70474391,0.00036164,7]
[314844744,1708584680180,-195.62207892,0.00036164,7]
[314844745,1708584680190,-945.31305518,0.00036164,2]
[314844746,1708584680218,-1324.8,0.00036164,2]
[314844747,1708584680243,-500.0,0.0003589,2]
[314844748,1708584680252,-1286.15694482,0.00036164,2]
[314844749,1708584680261,-173.84020751,0.00036164,2]
[314844750,1708584680301,-326.15979249,0.00036164,2]
[314844751,1708584680311,-500.0,0.00036164,2]
[314844752,1708584680321,-1718.30857797,0.00036164,2]
[314844753,1708584680337,-148.37142203,0.00036164,2]
[314844754,1708584680347,-500.0,0.00036164,2]
[314844755,1708584680356,-567.07600942,0.00036164,2]
[314844756,1708584680407,-2181.98399058,0.00036164,2]
[314844757,1708584680417,-647.91664489,0.00036164,2]
[314844758,1708584680426,-500.0,0.00036164,2]
[314844759,1708584680437,-971.91,0.00036164,2]
[314844760,1708584680447,-896.18936453,0.00036164,2]
[314844761,1708584680460,-500.62895699,0.00036164,2]
[314844762,1708584833571,36704.52098181,0.00023,2]
[314844763,1708584896067,1410.03953378,0.00023,2]
[314844765,1708584912038,1410.03953378,0.00023,2]
[314844766,1708584932082,1410.03953378,0.00023,2]
[314844771,1708585488293,521.10727249,0.00023,2]
[314844778,1708585831906,-1410.03953378,0.00029443,2]
[314844779,1708585831918,-485.61557386,0.00029444,2]
[314844780,1708585831927,-485.61557386,0.00029444,2]
[314844781,1708585831937,-485.61557386,0.00029444,2]
[314844782,1708585831946,-485.61557386,0.00029444,2]
[314844783,1708585831961,-485.61557386,0.00029444,2]
[314844784,1708585831971,-485.61557386,0.00029444,2]
[314844785,1708585831982,-485.61557386,0.00029444,2]
[314844786,1708585831994,-189.49123097,0.00029891,2]
[314844787,1708585832005,-177.69,0.0003,2]
[314844788,1708585832016,-198.03247157,0.00030548,2]
[314844789,1708585832026,-150.1,0.000306,2]
[314844790,1708585832037,-55061.515273,0.00031,2]
[314844791,1708585832047,-1864.01162733,0.00031,4]
[314844792,1708585832057,-558.19,0.00031147,2]
[314844793,1708585832067,-167.0,0.00032281,2]
[314844794,1708585832077,-293.95,0.00032281,2]
[314844795,1708585832088,-150.99,0.00032281,2]
[314844796,1708585832099,-250.0,0.00032701,2]
[314844797,1708585832109,-23900.0,0.00032701,2]
[314844798,1708585832119,-309.49,0.00032704,2]
[314844799,1708585832129,-250.0,0.00032732,2]
[314844800,1708585832139,-499.99,0.00032734,2]
[314844801,1708585832149,-2785.61,0.00032779,2]
[314844802,1708585832159,-170.35,0.00032818,2]
[314844803,1708585832169,-167.0,0.00032829,2]
[314844804,1708585832179,-152.0,0.00032833,3]
[314844805,1708585832188,-254.55,0.00032841,2]
[314844806,1708585832198,-2000.0,0.00032846,2]
[314844807,1708585832207,-150.0,0.00032865,2]
[314844808,1708585832217,-156.41,0.00032877,2]
[314844809,1708585832227,-172.15,0.00032877,2]
[314844810,1708585832237,-158.05,0.00032924,2]
[314844811,1708585832247,-158.19,0.00032935,2]
[314844812,1708585832259,-173.88482963,0.00033,2]
[314844813,1708585832269,-167.0,0.00033377,2]
[314844814,1708585832280,-558.19,0.00033411,2]
[314844815,1708585832290,-1000.0,0.00033425,2]
[314844816,1708585832300,-158.05,0.00033747,2]
[314844817,1708585832310,-480.49847673,0.000339,7]
[314844818,1708585832319,-167.0,0.00033925,2]
[314844819,1708585832330,-2294.0,0.00033991,2]
[314844820,1708585832340,-5594.66,0.00033991,2]
[314844821,1708585832350,-3505.058,0.00033991,2]
[314844822,1708585832359,-252.22,0.00033991,2]
[314844823,1708585832369,-527.264,0.00033991,2]
[314844824,1708585832379,-152.0,0.00034152,4]
[314844825,1708585832389,-161.23468206,0.00034355,3]
[314844826,1708585832403,-170.35,0.00034462,2]
[314844827,1708585832414,-167.0,0.00034473,2]
[314844828,1708585832425,-2599.24,0.00034521,2]
[314844829,1708585832435,-158.05,0.0003457,2]
[314844830,1708585832446,-159.32097843,0.00034616,2]
[314844831,1708585832456,-500.0,0.000348,2]
[314844832,1708585832467,-22897.38218398,0.000348,5]
[314844833,1708585832478,-1092.52635848,0.000348,7]
[314844834,1708585832487,-5000.0,0.000348,3]
[314844835,1708585832497,-188.9210544,0.000348,2]
[314844836,1708585832508,-189.49123097,0.000348,2]
[314844837,1708585832519,-151.58842651,0.000348,2]
[314844838,1708585832528,-2179.9946,0.000348,2]
[314844839,1708585832539,-480.60885232,0.000348,2]
[314844840,1708585832548,-601.11303812,0.000348,7]
[314844841,1708585832558,-314.66541496,0.000348,2]
[314844842,1708585832568,-528.19436425,0.000348,2]
[314844843,1708585832578,-6811.68812298,0.0003489,6]
[314844844,1708585832588,-151.022215,0.00034898,2]
[314844845,1708585832599,-151.022215,0.00034898,2]
[314844846,1708585832609,-151.022215,0.00034898,2]
[314844847,1708585832619,-151.022215,0.00034898,2]
[314844848,1708585832630,-151.022215,0.00034898,2]
[314844849,1708585832640,-151.022215,0.00034898,2]
[314844850,1708585832650,-151.022215,0.00034898,2]
[314844851,1708585832660,-151.022215,0.00034898,2]
[314844852,1708585832674,-151.022215,0.00034898,2]
[314844853,1708585832684,-151.022215,0.00034898,2]
[314844854,1708585832694,-171.63973614,0.00034899,2]
[314844855,1708585832704,-150.0,0.00034899,30]
[314844856,1708585832713,-150.0,0.00034899,30]
[314844857,1708585832722,-2170.0,0.000349,2]
[314844858,1708585832732,-22143.83434635,0.000349,5]
[314844859,1708585832746,-884423.65106868,0.000349,5]
[314844860,1708585832773,-562.4996314,0.000349,5]
[314844861,1708585832786,-5153.6742,0.000349,5]
[314844862,1708585832825,-7353.32061136,0.000349,5]
[314844863,1708585832838,-368.69027083,0.000349,5]
[314844864,1708585832851,-137318.38770568,0.000349,5]
[314844865,1708585832950,-56418.29027209,0.000349,5]
[314844866,1708585832975,-1302.24553177,0.000349,5]
[314844867,1708585832988,-261.15578167,0.000349,5]
[314844868,1708585833005,-350.0,0.000349,5]
[314844869,1708585833017,-1006.31891198,0.000349,5]
[314844870,1708585833056,-8764.46280414,0.000349,5]
[314844871,1708585833086,-287.03420273,0.000349,5]
[314844872,1708585833098,-512.32434185,0.000349,5]
[314844873,1708585833112,-72528.15224065,0.000349,5]
[314844874,1708585833124,-528.196971,0.000349,5]
[314844875,1708585837642,-209.0,0.00028445,2]
[314844876,1708585837652,-209.0,0.00031313,7]
[314844877,1708585837665,-209.0,0.00034182,12]
[314844878,1708585837676,-4540.7,0.000349,5]
[314844879,1708585837703,-219.71170616,0.000349,5]
[314844880,1708585837740,-20894.728884,0.000349,5]
[314844881,1708585837778,-28562.9172934,0.000349,5]
[314844882,1708585837791,-16743.76262213,0.000349,5]
[314844883,1708585837804,-19739.7001427,0.000349,5]
[314844884,1708585837817,-3045.08745282,0.000349,5]
[314844885,1708585837830,-1140.39249561,0.000349,5]
[314844886,1708585837842,-685.95143095,0.000349,5]
[314844887,1708585837871,-39215.9491453,0.000349,5]
[314844888,1708585837965,-54497.8,0.000349,5]
[314844889,1708585838025,-211344.56074644,0.000349,5]
[314844891,1708585838037,-164432.41981341,0.000349,5]
[314844900,1708585840852,-161.23468206,0.00034355,3]
[314844901,1708585840862,-1716.95427482,0.000349,5]
[314844902,1708585840875,-1272.73646141,0.000349,5]
[314844903,1708585840886,-1066.52,0.000349,5]
[314844909,1708585842681,-336787.18794513,0.000349,5]
[314844910,1708585842691,-3737.87318082,0.000349,2]
[314844911,1708585842701,-1771.051723,0.000349,2]
[314844912,1708585842711,-1771.05172296,0.000349,2]
[314844913,1708585842720,-1771.05172296,0.000349,2]
[314844914,1708585842730,-1771.05172296,0.000349,2]
[314844915,1708585842739,-1771.05172296,0.000349,2]
[314844916,1708585842748,-1771.05172296,0.000349,2]
[314844917,1708585842757,-1771.05172296,0.000349,2]
[314844918,1708585842766,-1771.05172296,0.000349,2]
[314844919,1708585842776,-1771.05172296,0.000349,2]
[314844920,1708585842785,-1771.05172296,0.000349,2]
[314844921,1708585842794,-1771.05172296,0.000349,2]
[314844922,1708585842804,-1771.05172296,0.000349,2]
[314844923,1708585842813,-1771.05172296,0.000349,2]
[314844924,1708585842822,-1771.05172296,0.000349,2]
[314844925,1708585842831,-1771.05172296,0.000349,2]
[314844926,1708585842840,-1771.05172296,0.000349,2]
[314844927,1708585842849,-1771.05172296,0.000349,2]
[314844928,1708585842858,-1771.05172296,0.000349,2]
[314844929,1708585842867,-1771.05172296,0.000349,2]
[314844930,1708585842876,-1771.05172296,0.000349,2]
[314844931,1708585842885,-151.58842651,0.00034933,2]
[314844932,1708585842895,-1092.52635847,0.00034965,7]
[314844933,1708585842904,-16687.43141528,0.00034999,3]
[314844934,1708585842913,-102915.48858768,0.00034999,2]
[314844935,1708585842944,-462550.63710001,0.00034999,2]
[314844938,1708585843098,-3642.42915054,0.00034999,2]
[314844939,1708585843111,-292.76599889,0.00034999,2]
[314844940,1708585843137,-53348.25999732,0.00034999,2]
[314844941,1708585843148,-1007.60514619,0.00035,5]
[314844942,1708585843157,-71079.02196717,0.00035,2]
[314844943,1708585843166,-8575.81327615,0.00035,2]
[314844944,1708585843175,-13182.17341829,0.00035,4]
[314844945,1708585843184,-12039.69556111,0.00035,2]
[314844946,1708585843208,-29595.39200002,0.00035,2]
[314844948,1708585846051,-967.75773325,0.00033154,4]
[314844949,1708585846061,-1379.70985697,0.000348,3]
[314844951,1708586032138,534.18459059,0.00031,30]
[314844952,1708586524329,209.0,0.00026445,2]
[314844989,1708587031918,-209.0,0.00029173,2]
[314844990,1708587031928,-909.85786875,0.0003,2]
[314844991,1708587031937,-1845.48689759,0.00031727,4]
[314844992,1708587031946,-355.16,0.00032744,2]
[314844993,1708587031955,-152.30559775,0.00032777,2]
[314844994,1708587031964,-156.41,0.00032877,2]
[314844995,1708587031973,-430.60380467,0.00033,2]
[314844996,1708587031983,-5935.4520068,0.00033,2]
[314844997,1708587031995,-1504.13245275,0.00033,2]
[314844998,1708587032007,-852.59213198,0.00033,2]
[314844999,1708587032026,-1092.88854855,0.00033,2]
[314845000,1708587032039,-2496.98736043,0.00033,2]
[314845001,1708587032048,-209.0,0.00033027,9]
[314845002,1708587032057,-215.17,0.00033106,2]
[314845003,1708587032065,-250.0,0.00033111,2]
[314845004,1708587032074,-1000.0,0.00033157,2]
[314845005,1708587032085,-257.9,0.00033199,2]
[314845006,1708587032094,-250.0,0.00033203,2]
[314845007,1708587032104,-150.0,0.00033223,2]
[314845008,1708587032114,-18945.78976871,0.00033236,2]
[314845009,1708587032126,-4776.05874168,0.00033236,2]
[314845010,1708587032137,-178.15148961,0.00033236,2]
[314845011,1708587032146,-229.13,0.00033243,2]
[314845012,1708587032155,-163.96,0.00033315,2]
[314845013,1708587032165,-10.13409422,0.0003336,2]
[314845019,1708587032286,-146.23590578,0.0003336,2]
[314845022,1708587032295,-153.99,0.00033385,2]
[314845025,1708587032305,-198.69,0.00033388,2]
[314845027,1708587032314,-499.99,0.00033478,2]
[314845028,1708587032326,-163.96,0.00033532,2]
[314845030,1708587032336,-2966.24,0.00033597,2]
[314845032,1708587032346,-2000.0,0.00033645,2]
[314845034,1708587032358,-163.96,0.00033748,2]
[314845036,1708587032370,-163.96,0.00033965,2]
[314845037,1708587032379,-161.16,0.00034136,2]
[314845038,1708587032389,-163.96,0.00034181,2]
[314845039,1708587032398,-161.23468206,0.00034355,3]
[314845040,1708587032408,-161.23468206,0.00034355,3]
[314845041,1708587032417,-163.96,0.00034398,2]
[314845042,1708587032427,-742.468176,0.0003452,2]
[314845043,1708587032436,-8715.671758,0.0003452,2]
[314845044,1708587032447,-371.234088,0.0003452,2]
[314845045,1708587032456,-2296.8,0.00034521,2]
[314845046,1708587032466,-163.96,0.00034614,2]
[314845047,1708587032476,-150.0,0.00034616,2]
[314845048,1708587032486,-250.0,0.00034616,2]
[314845049,1708587032496,-150.0,0.00034676,2]
[314845050,1708587032770,-1154.10980387,0.00034694,2]
[314845051,1708587032780,-10567.5098,0.000347,2]
[314845052,1708587032790,-253.1296,0.000347,2]
[314845053,1708587032799,-326.86,0.0003479,3]
[314845054,1708587032808,-7771.9711,0.0003479,2]
[314845055,1708587032817,-1113.702265,0.00034794,2]
[314845056,1708587032827,-13073.507638,0.00034794,2]
[314845057,1708587032836,-556.851132,0.00034794,2]
[314845058,1708587032845,-1000.0,0.000348,2]
[314845059,1708587032855,-500.0,0.000348,2]
[314845060,1708587032864,-1227.036,0.000348,2]
[314845061,1708587032874,-163.96,0.00034831,2]
[314845062,1708587032883,-229.13,0.00034887,2]
[314845063,1708587032892,-365.77012968,0.0003489,2]
[314845064,1708587032902,-580.37787289,0.00034899,4]
[314845065,1708587032911,-1154.10980387,0.000349,2]
[314845066,1708587032920,-1224.7771,0.000349,2]
[314845067,1708587032929,-17886.798,0.000349,2]
[314845068,1708587032938,-9520.9881,0.000349,2]
[314845069,1708587032947,-100000.0,0.000349,2]
[314845070,1708587032956,-168.68215889,0.000349,7]
[314845071,1708587032965,-322.9821,0.000349,2]
[314845072,1708587032974,-4358.0642,0.000349,2]
[314845073,1708587032983,-106986.0108,0.000349,2]
[314845074,1708587032992,-2437.9467,0.000349,2]
[314845075,1708587033003,-12408.6868,0.000349,2]
[314845076,1708587033012,-18434.0,0.000349,2]
[314845077,1708587033022,-703.89230197,0.000349,2]
[314845078,1708587033034,-1183.64619781,0.000349,2]
[314845079,1708587033057,-1761.69598456,0.000349,2]
[314845080,1708587033067,-1484.936353,0.00034931,2]
[314845081,1708587033076,-17431.343517,0.00034931,2]
[314845082,1708587033085,-742.468176,0.00034931,2]
[314845083,1708587033095,-161.16,0.00034989,2]
[314845084,1708587033104,-275.82067022,0.0003499,2]
[314845085,1708587033113,-13423.50661722,0.00034998,3]
[314845086,1708587033123,-277809.91243887,0.00035,2]
[314845087,1708587033133,-586.79552556,0.00035,4]
[314845088,1708587033142,-150.1,0.00035,2]
[314845089,1708587033151,-13182.17341829,0.00035,4]
[314845090,1708587033160,-19362.01878089,0.00035,2]
[314845091,1708587033170,-2000.0,0.00035,2]
[314845092,1708587033180,-3000.0,0.00035,2]
[314845093,1708587033189,-411195.36639045,0.00035,10]
[314845094,1708587033214,-384.14282,0.00035,10]
[314845095,1708587033468,-583.33361107,0.00035,10]
[314845096,1708587033481,-1496.58275489,0.00035,10]
[314845097,1708587033493,-455.94522447,0.00035,10]
[314845107,1708587037777,-388.05,0.00032205,2]
[314845109,1708587037788,-227.5,0.00032205,2]
[314845111,1708587037797,-615.55,0.00034469,2]
[314845113,1708587037807,-499.99,0.00034899,2]
[314845115,1708587037818,-727.88096,0.00035,10]
[314845117,1708587037951,-103601.99999997,0.00035,10]
[314845118,1708587037968,-28068.60945449,0.00035,10]
[314845119,1708587037980,-1752.053908,0.00035,10]
[314845120,1708587038076,-729.80197834,0.00035,10]
[314845121,1708587038089,-1007.12890633,0.00035,10]
[314845122,1708587038100,-72900.79819901,0.00035,10]
[314845126,1708587040388,-2257.69327903,0.00035,10]
[314845127,1708587040408,-2320.03604465,0.00035,10]
[314845128,1708587040597,-388.57515809,0.00035,10]